bitfinex/quotes_SOLUSD_20240813
["timestamp","ask_amount","ask_price","bid_price","bid_amount"]
[1723585676256,6.5216,147.65,147.59,11.84]
[1723585676955,6.5216,147.65,147.58,20.0]
[1723585677165,6.5216,147.65,147.58,12.34]
[1723585678245,6.5216,147.65,147.59,20.0]
[1723585678639,13.2944,147.65,147.59,20.0]
[1723585678844,0.12549,147.64,147.59,20.0]
[1723585679043,13.2943,147.65,147.59,20.0]
[1723585679273,6.5216,147.65,147.59,20.0]
[1723585679840,13.2944,147.65,147.58,12.34]
[1723585680339,6.5216,147.65,147.58,12.34]
[1723585680546,6.5216,147.65,147.56,49.36]
[1723585680872,6.5216,147.65,147.58,12.34]
[1723585681683,13.2943,147.65,147.58,12.34]
[1723585681976,6.5216,147.65,147.58,12.34]
[1723585682141,0.12549,147.64,147.58,12.34]
[1723585682344,0.50196,147.64,147.58,12.34]
[1723585686665,15.3218,147.63,147.57,32.34]
[1723585687165,0.37647,147.62,147.56,12.34]
[1723585687342,0.37647,147.62,147.57,20.0]
[1723585688160,15.3218,147.63,147.57,20.0]
[1723585688774,0.25098,147.62,147.57,20.0]
[1723585688960,15.3218,147.63,147.57,20.0]
[1723585689367,15.3218,147.63,147.56,12.34]
[1723585689567,15.3218,147.63,147.57,20.0]
[1723585696191,0.25098,147.62,147.57,20.0]
[1723585697876,0.25098,147.62,147.55,12.34]
[1723585698080,0.25098,147.62,147.56,20.0]
[1723585698580,15.07278,147.63,147.56,20.0]
[1723585698784,0.12549,147.62,147.56,20.0]
[1723585700582,0.25098,147.62,147.56,20.0]
[1723585702296,15.07278,147.63,147.56,20.0]
[1723585705670,15.07278,147.63,147.55,12.34]
[1723585705875,15.07278,147.63,147.56,20.0]
[1723585707502,0.12549,147.64,147.57,12.34]
[1723585708196,0.25098,147.65,147.57,12.34]
[1723585711206,0.25098,147.65,147.58,20.0]
[1723585712283,0.12549,147.65,147.58,20.0]
[1723585712484,0.25098,147.65,147.58,20.0]
[1723585717693,45.37647,147.66,147.58,20.0]
[1723585718305,0.37647,147.66,147.58,20.0]
[1723585719999,7.14887,147.66,147.58,20.0]
[1723585720206,19.48887,147.66,147.56,20.0]
[1723585723105,12.71647,147.66,147.56,20.0]
[1723585723494,0.37647,147.66,147.57,12.34]
[1723585723697,0.37647,147.66,147.58,20.0]
[1723585725304,28.56472592,147.67,147.58,20.0]
[1723585725617,16.3568774,147.67,147.58,20.0]
[1723585725989,28.56466621,147.67,147.58,20.0]
[1723585727517,28.56471999,147.67,147.58,20.0]
[1723585727807,16.3568774,147.67,147.58,20.0]
[1723585732916,16.3568774,147.67,147.58,12.34]
[1723585733108,16.3568774,147.67,147.59,20.0]
[1723585737812,16.3568774,147.67,147.56,20.12549]
[1723585738118,16.3568774,147.67,147.57,65.72890211]
[1723585738302,16.3568774,147.67,147.58,20.0]
[1723585739204,16.3568774,147.67,147.58,32.34]
[1723585740195,6.89789,147.66,147.58,20.0]
[1723585740520,6.89789,147.66,147.56,32.34]
[1723585740521,0.25098,147.65,147.56,32.34]
[1723585740709,0.25098,147.65,147.57,8.13822402]
[1723585741019,0.25098,147.65,147.58,20.0]
[1723585741396,0.25098,147.65,147.57,20.0]
[1723585749631,15.3135,147.64,147.57,20.0]
[1723585750505,15.3135,147.64,147.56,20.0]
[1723585750812,15.3135,147.64,147.57,8.13826744]
[1723585751035,15.3135,147.64,147.58,20.0]
[1723585751605,15.3135,147.64,147.56,20.0]
[1723585751942,15.3135,147.64,147.57,8.13826924]
[1723585752228,15.3135,147.64,147.58,20.0]
[1723585752906,15.3135,147.64,147.56,20.0]
[1723585753106,15.3135,147.64,147.57,8.13826924]
[1723585753331,15.3135,147.64,147.58,20.0]
[1723585754025,15.3135,147.64,147.56,20.0]
[1723585754229,15.3135,147.64,147.57,8.13826558]
[1723585754441,6.1279,147.63,147.57,8.13826558]
[1723585755627,6.1279,147.63,147.56,20.0]
[1723585755820,6.1279,147.63,147.57,8.13827107]
[1723585756020,6.1279,147.63,147.56,20.0]
[1723585756214,6.1279,147.63,147.57,8.13826924]
[1723585759129,6.1279,147.63,147.56,20.0]
[1723585759322,6.1279,147.63,147.57,8.13826924]
[1723585762933,6.1279,147.63,147.56,20.0]
[1723585763135,6.1279,147.63,147.57,8.13830401]
[1723585763436,6.1279,147.63,147.56,8.13830401]
[1723585763633,6.1279,147.63,147.57,28.1382331]
[1723585763837,6.1279,147.63,147.57,20.0]
[1723585764337,6.1279,147.63,147.56,20.0]
[1723585770342,6.1279,147.63,147.54,12.34]
[1723585770548,6.1279,147.63,147.55,73.26406483]
[1723585770716,6.1279,147.63,147.56,8.13857483]
[1723585771243,6.1279,147.63,147.57,20.0]
[1723585771744,6.1279,147.63,147.56,20.0]
[1723585779251,12.34,147.58,147.52,22.14888403]
[1723585779551,12.34,147.58,147.49,12.34]
[1723585779764,12.34,147.58,147.5,8.1403649]
[1723585780135,19.116,147.58,147.5,8.1403649]
[1723585780761,12.34,147.58,147.5,8.1403649]
[1723585781347,28.3304,147.59,147.5,8.1403649]
[1723585781547,28.3304,147.59,147.51,12.46549]
[1723585782447,35.1059,147.59,147.49,12.34]
[1723585782655,35.1059,147.59,147.5,28.14055456]
[1723585782656,0.12549,147.58,147.5,28.14055456]
[1723585782852,0.12549,147.58,147.51,8.14055456]
[1723585783068,0.12549,147.58,147.5,20.0]
[1723585785141,7.27836,147.58,147.5,20.0]
[1723585785351,7.27836,147.58,147.49,12.34]
[1723585785649,7.27836,147.58,147.5,20.0]
[1723585790439,0.50196,147.58,147.5,20.0]
[1723585790829,21.8956,147.57,147.5,20.0]
[1723585791036,21.8956,147.57,147.49,12.34]
[1723585791372,21.8956,147.57,147.5,20.0]
[1723585791950,15.2449,147.56,147.47,7.15443402]
[1723585792277,52.27936,147.55,147.46,12.34]
[1723585792872,52.27936,147.55,147.44,22.71558359]
[1723585793072,0.12549,147.55,147.46,12.34]
[1723585793373,15.2449,147.56,147.48,12.34]
[1723585793576,15.2449,147.56,147.49,20.0]
[1723585793867,15.2449,147.56,147.52,12.34]
[1723585798663,15.2449,147.56,147.49,32.34]
[1723585798664,15.2449,147.56,147.49,20.0]
[1723585798969,15.2449,147.56,147.5,57.34]
[1723585799142,15.2449,147.56,147.51,20.0]
[1723585804264,15.2449,147.56,147.52,45.0]
[1723585807578,15.2449,147.56,147.51,20.0]
[1723585807782,15.2449,147.56,147.5,0.12549]
[1723585807965,15.2449,147.56,147.5,65.37647]
[1723585809772,15.2449,147.56,147.51,12.34]
[1723585809971,15.2449,147.56,147.52,65.0]
[1723585811484,22.2503,147.61,147.52,65.0]
[1723585811670,19.1161,147.58,147.52,20.0]
[1723585811870,12.34,147.58,147.52,20.0]
[1723585812075,0.37647,147.6,147.5,0.12549]
[1723585812076,19.36608,147.6,147.5,0.12549]
[1723585812264,19.36608,147.6,147.5,20.12549]
[1723585812465,41.3649,147.61,147.51,12.46549]
[1723585812665,34.5903,147.61,147.52,20.12549]
[1723585812889,34.5903,147.61,147.53,45.0]
[1723585813266,22.2503,147.61,147.53,45.0]
[1723585813760,22.2503,147.61,147.54,20.0]
[1723585823380,22.2503,147.61,147.55,1.35513126]
[1723585823579,22.2503,147.61,147.54,20.0]
[1723585826510,22.2503,147.61,147.55,1.35513126]
[1723585828507,22.2503,147.61,147.54,20.0]
[1723585831805,22.2503,147.61,147.55,45.0]
[1723585832008,22.2503,147.61,147.56,1.355031]
[1723585833704,22.2503,147.61,147.55,45.0]
[1723585857348,16.0531,147.61,147.55,45.0]
[1723585857849,16.0531,147.61,147.55,57.34]
[1723585861084,16.0531,147.61,147.55,57.34]
[1723585861966,16.0531,147.61,147.55,58.69501901]
[1723585862167,16.0531,147.61,147.55,57.34]
[1723585864778,16.0531,147.61,147.55,45.0]
[1723585883206,16.0531,147.61,147.56,20.0]
[1723585890178,22.7925,147.64,147.57,0.37647]
[1723585890385,22.7925,147.64,147.58,12.34]
[1723585890714,22.7925,147.64,147.59,20.0]
[1723585891783,22.7925,147.64,147.58,12.34]
[1723585892023,22.7925,147.64,147.59,20.0]
[1723585895692,22.7925,147.64,147.58,12.34]
[1723585895893,22.7925,147.64,147.59,20.0]
[1723585896094,22.7925,147.64,147.58,12.34]
[1723585896299,22.7925,147.64,147.59,20.0]
[1723585897392,22.7925,147.64,147.57,0.37647]
[1723585897617,22.7925,147.64,147.58,12.46549]
[1723585897790,22.7925,147.64,147.59,65.12549]
[1723585898189,22.7925,147.64,147.6,20.0]
[1723585937091,16.3177,147.64,147.6,20.0]
[1723585943691,16.3177,147.64,147.61,8.13741386]
[1723585943868,16.3177,147.64,147.6,20.0]
[1723585944069,16.3177,147.64,147.61,8.13741174]
[1723585944375,16.3177,147.64,147.62,8.13741174]
[1723585944579,16.3177,147.64,147.6,20.0]
[1723585944787,16.3177,147.64,147.61,8.13741174]
[1723585944974,16.3177,147.64,147.6,20.0]
[1723585945167,16.3177,147.64,147.61,8.13741597]
[1723585945358,16.3177,147.64,147.6,20.0]
[1723585945562,16.3177,147.64,147.61,8.13744996]
[1723585945764,16.3177,147.64,147.6,20.0]
[1723585945987,16.3177,147.64,147.61,8.13744785]
[1723585946186,16.3177,147.64,147.62,8.13743969]
[1723585946499,16.3177,147.64,147.6,20.0]
[1723585946791,16.3177,147.64,147.61,8.13739992]
[1723585947090,16.3177,147.64,147.6,20.0]
[1723585947275,16.3177,147.64,147.61,8.13745885]
[1723585947474,16.3177,147.64,147.6,20.0]
[1723585947674,16.3177,147.64,147.61,8.13742092]
[1723585947894,16.3177,147.64,147.6,20.0]
[1723585948079,16.3177,147.64,147.61,8.13743906]
[1723585948274,16.3177,147.64,147.6,20.0]
[1723585948476,16.3177,147.64,147.61,8.13747517]
[1723585948693,16.3177,147.64,147.6,20.0]
[1723585948885,16.3177,147.64,147.61,8.13743833]
[1723585949092,16.3177,147.64,147.6,20.0]
[1723585949267,16.3177,147.64,147.61,8.13746884]
[1723585949598,16.3177,147.64,147.6,20.0]
[1723585949896,16.3177,147.64,147.61,8.13747517]
[1723585950065,16.3177,147.64,147.6,20.0]
[1723585950268,16.3177,147.64,147.61,8.137477]
[1723585950485,16.3177,147.64,147.6,20.0]
[1723585950683,16.3177,147.64,147.61,8.13742907]
[1723585950968,16.3177,147.64,147.6,20.0]
[1723585951171,16.3177,147.64,147.61,8.13743091]
[1723585951375,16.3177,147.64,147.6,20.0]
[1723585951574,16.3177,147.64,147.61,8.13747517]
[1723585951775,16.3177,147.64,147.6,20.0]
[1723585951982,16.3177,147.64,147.61,8.13747517]
[1723585952200,16.3177,147.64,147.6,20.0]
[1723585952431,16.3177,147.64,147.61,8.13746884]
[1723585952572,16.3177,147.64,147.6,20.0]
[1723585952768,16.3177,147.64,147.61,18.09289019]
[1723585953070,16.3177,147.64,147.61,9.95536069]
[1723585954888,16.3177,147.64,147.62,18.09278976]
[1723585955093,16.3177,147.64,147.61,9.95536069]
[1723585956220,16.3177,147.64,147.61,9.95539775]
[1723585956889,16.3177,147.64,147.62,18.09286476]
[1723585957099,16.3177,147.64,147.62,9.95539775]
[1723585959598,17.4353774,147.67,147.61,9.95539775]
[1723585959805,17.4353774,147.67,147.61,9.95535748]
[1723585962406,17.4353774,147.67,147.62,8.13743783]
[1723585962713,17.4353774,147.67,147.61,9.95535748]
[1723585962907,17.4353774,147.67,147.62,8.13742717]
[1723585963295,17.4353774,147.67,147.61,9.95535748]
[1723585963296,17.4353774,147.67,147.61,9.95461594]
[1723585963496,17.4353774,147.67,147.62,8.13742329]
[1723585963799,17.4353774,147.67,147.61,9.95461594]
[1723585963997,17.4353774,147.67,147.62,8.13742329]
[1723585964200,17.4353774,147.67,147.61,9.95461594]
[1723585965416,17.4353774,147.67,147.62,8.13746123]
[1723585966486,17.4353774,147.67,147.61,9.95461594]
[1723585966697,17.4353774,147.67,147.6,20.0]
[1723585968221,17.4353774,147.67,147.61,8.13746306]
[1723585968404,29.7753774,147.67,147.61,8.13746306]
[1723585969529,17.4353774,147.67,147.61,8.13746306]
[1723585969738,17.4353774,147.67,147.61,18.0855108]
[1723585971602,17.4353774,147.67,147.6,20.0]
[1723585972403,0.12549,147.66,147.6,20.0]
[1723585972604,0.25098,147.66,147.57,12.34]
[1723585972796,0.25098,147.66,147.58,20.0]
[1723585973113,0.25098,147.66,147.57,12.34]
[1723585973309,0.25098,147.66,147.58,20.0]
[1723585974895,0.25098,147.66,147.61,9.95020218]
[1723585978427,0.25098,147.66,147.62,8.13746306]
[1723585979528,17.4353774,147.67,147.62,8.13746306]
[1723585981041,17.4353774,147.67,147.61,9.9539663]
[1723585981202,17.4353774,147.67,147.62,8.13746123]
[1723585982429,17.4353774,147.67,147.61,9.9539663]
[1723585983407,17.4353774,147.67,147.62,8.13746123]
[1723585984156,17.4353774,147.67,147.59,12.34]
[1723585984301,17.4353774,147.67,147.61,9.95295113]
[1723585984506,17.4353774,147.67,147.62,9.49194579]
[1723585984709,17.4353774,147.67,147.62,1.35447667]
[1723585985619,17.4353774,147.67,147.62,54.95295113]
[1723585985821,17.4353774,147.67,147.62,56.30739262]
[1723585986808,17.4353774,147.67,147.63,18.09025544]
[1723585987127,17.4353774,147.67,147.63,9.95295113]
[1723585987319,17.4353774,147.67,147.62,56.30739262]
[1723585987740,17.4353774,147.67,147.63,8.1367587]
[1723585988237,17.4353774,147.67,147.62,54.94992235]
[1723585991439,17.4353774,147.67,147.62,54.95130552]
[1723585991760,17.4353774,147.67,147.62,45.0]
[1723585991925,17.4353774,147.67,147.62,54.95177547]
[1723585994862,17.4353774,147.67,147.62,54.95643092]
[1723585998430,17.4353774,147.67,147.62,54.95690198]
[1723586000424,17.4353774,147.67,147.63,8.13686886]
[1723586000625,17.4353774,147.67,147.64,8.13686886]
[1723586000831,17.4353774,147.67,147.65,8.13686886]
[1723586001028,17.4353774,147.67,147.62,67.29690198]
[1723586001252,17.4353774,147.67,147.64,9.95690198]
[1723586001437,17.4353774,147.67,147.65,8.13660335]
[1723586001746,17.4353774,147.67,147.64,9.95690198]
[1723586001950,17.4353774,147.67,147.65,8.13656176]
[1723586002127,17.4353774,147.67,147.66,8.13656176]
[1723586002342,17.4353774,147.67,147.66,8.13622572]
[1723586002527,17.4353774,147.67,147.64,9.95527266]
[1723586002722,17.4353774,147.67,147.65,8.13622939]
[1723586002937,17.4353774,147.67,147.64,9.95527266]
[1723586003131,0.8298774,147.67,147.65,8.13625652]
[1723586003349,0.8298774,147.67,147.64,9.95527266]
[1723586005557,0.8298774,147.67,147.65,8.13612405]
[1723586005758,0.8298774,147.67,147.64,9.95974145]
[1723586006055,0.8298774,147.67,147.65,8.13605881]
[1723586006238,0.8298774,147.67,147.64,9.95974145]
[1723586006832,0.8298774,147.67,147.65,1.35431866]
[1723586007825,0.8298774,147.67,147.64,11.31420325]
[1723586008027,0.8298774,147.67,147.65,8.13584103]
[1723586008229,0.8298774,147.67,147.64,9.95974145]
[1723586008445,0.8298774,147.67,147.65,8.13584103]
[1723586008644,0.8298774,147.67,147.64,9.95974145]
[1723586008843,0.8298774,147.67,147.65,8.13584103]
[1723586009056,0.8298774,147.67,147.64,9.95974145]
[1723586009230,0.8298774,147.67,147.65,8.13580311]
[1723586009432,0.8298774,147.67,147.64,9.95974145]
[1723586009631,0.8298774,147.67,147.65,8.13580494]
[1723586009930,0.8298774,147.67,147.64,9.95974145]
[1723586010253,0.8298774,147.67,147.65,8.13584286]
[1723586010460,0.8298774,147.67,147.64,9.95974145]
[1723586010754,0.8298774,147.67,147.65,9.49016461]
[1723586010950,0.8298774,147.67,147.64,9.95974145]
[1723586011152,0.8298774,147.67,147.65,9.49015863]
[1723586011337,0.8298774,147.67,147.64,9.95974145]
[1723586011659,0.8298774,147.67,147.65,8.13584919]
[1723586011833,0.8298774,147.67,147.64,11.31406346]
[1723586012034,0.8298774,147.67,147.65,8.13573848]
[1723586012334,0.8298774,147.67,147.64,9.95974145]
[1723586012541,0.8298774,147.67,147.65,8.13566466]
[1723586012747,0.8298774,147.67,147.64,19.92151824]
[1723586012947,0.8298774,147.67,147.65,8.13566466]
[1723586013156,0.8298774,147.67,147.64,9.96075912]
[1723586013361,0.8298774,147.67,147.65,9.4899271]
[1723586013542,0.8298774,147.67,147.65,1.35425935]
[1723586013734,0.8298774,147.67,147.64,9.96075912]
[1723586014049,0.8298774,147.67,147.65,9.48992711]
[1723586014239,0.8298774,147.67,147.65,9.96075912]
[1723586016047,0.8298774,147.67,147.65,9.96472232]
[1723586016347,0.8298774,147.67,147.66,8.13525221]
[1723586017348,0.8298774,147.67,147.65,9.96472232]
[1723586018155,0.8298774,147.67,147.66,53.13516464]
[1723586018337,0.8298774,147.67,147.66,45.0]
[1723586020147,0.8298774,147.67,147.66,8.13457087]
[1723586020460,0.8298774,147.67,147.66,18.09876912]
[1723586023177,0.8298774,147.67,147.66,18.09890953]
[1723586023472,0.8298774,147.67,147.66,8.13459195]
[1723586025647,0.8298774,147.67,147.66,18.0990986]
[1723586026674,0.8298774,147.67,147.66,18.09838613]
[1723586029861,0.8298774,147.67,147.66,8.13439965]
[1723586030181,0.8298774,147.67,147.66,8.13444736]
[1723586030383,0.8298774,147.67,147.66,18.09917071]
[1723586031550,0.8298774,147.67,147.66,8.13444736]
[1723586033111,0.8298774,147.67,147.65,9.96736846]
[1723586033253,0.8298774,147.67,147.66,8.13450442]
[1723586033455,0.8298774,147.67,147.66,18.10187288]
[1723586033865,0.8298774,147.67,147.66,18.10202302]
[1723586034289,0.8298774,147.67,147.66,18.10181]
[1723586034967,0.8298774,147.67,147.66,8.13435651]
[1723586039495,0.8298774,147.67,147.66,18.10181]
[1723586040896,0.8298774,147.67,147.66,38.09956217]
[1723586041961,0.8298774,147.67,147.66,18.09956217]
[1723586042160,0.8298774,147.67,147.66,38.09956217]
[1723586043310,0.8298774,147.67,147.66,20.0]
[1723586043484,0.8298774,147.67,147.66,18.09924824]
[1723586043684,0.8298774,147.67,147.66,38.09924824]
[1723586043996,0.8298774,147.67,147.66,38.09983794]
[1723586044176,0.8298774,147.67,147.66,29.96525414]
[1723586044400,0.8298774,147.67,147.66,38.09980819]
[1723586045303,0.8298774,147.67,147.66,38.09932178]
[1723586050437,0.8298774,147.67,147.66,20.0]
[1723586050714,0.8298774,147.67,147.66,18.09931891]
[1723586050913,0.8298774,147.67,147.66,28.13459195]
[1723586051919,0.8298774,147.67,147.66,38.09932961]
[1723586052413,0.8298774,147.67,147.66,28.13459195]
[1723586057619,0.8298774,147.67,147.66,28.13448908]
[1723586064647,0.8298774,147.67,147.66,20.0]
[1723586064920,0.8298774,147.67,147.66,8.13422162]
[1723586065112,0.8298774,147.67,147.66,28.13422162]
[1723586074327,15.0412,147.74,147.66,28.13422162]
[1723586074632,0.12549,147.73,147.69,9.95889091]
[1723586075238,0.12549,147.73,147.66,20.0]
[1723586075403,15.0412,147.74,147.69,9.96461306]
[1723586075839,15.0412,147.74,147.69,9.96549525]
[1723586076542,0.12549,147.73,147.69,9.96549525]
[1723586076706,27.3812,147.74,147.69,9.96549525]
[1723586076907,0.12549,147.73,147.69,9.96549525]
[1723586077151,27.3812,147.74,147.69,9.96549525]
[1723586077305,27.3812,147.74,147.66,20.0]
[1723586077512,27.3812,147.74,147.69,9.9675459]
[1723586078146,0.12549,147.73,147.69,9.9675459]
[1723586078437,0.25098,147.73,147.69,9.9675459]
[1723586078741,0.25098,147.73,147.65,20.0]
[1723586078909,0.25098,147.73,147.69,9.96766348]
[1723586079137,0.25098,147.73,147.69,9.96908407]
[1723586080422,27.3812,147.74,147.69,9.96908407]
[1723586080817,0.12549,147.73,147.69,9.96908407]
[1723586081020,0.25098,147.73,147.69,9.96908407]
[1723586081218,27.3812,147.74,147.69,9.96908407]
[1723586081956,0.12549,147.73,147.69,9.96908407]
[1723586082122,0.25098,147.73,147.69,9.96908407]
[1723586082449,27.3812,147.74,147.69,9.96908407]
[1723586083353,15.0412,147.74,147.69,9.96908407]
[1723586084557,15.0412,147.74,147.7,8.13349798]
[1723586084733,15.0412,147.74,147.69,9.96908407]
[1723586084941,15.0412,147.74,147.7,8.13346475]
[1723586085132,15.0412,147.74,147.69,9.96908407]
[1723586085326,0.12549,147.73,147.7,8.13347667]
[1723586085524,15.0412,147.74,147.69,9.96908407]
[1723586085846,15.0412,147.74,147.7,8.13348062]
[1723586086047,15.0412,147.74,147.69,9.96908407]
[1723586086248,0.12549,147.73,147.7,8.1334785]
[1723586086450,0.12549,147.73,147.69,9.96679542]
[1723586086634,0.12549,147.73,147.7,8.13352035]
[1723586086956,15.0412,147.74,147.69,9.96702527]
[1723586087260,15.0412,147.74,147.7,8.1335164]
[1723586087432,15.0412,147.74,147.69,9.96702527]
[1723586087633,15.0412,147.74,147.7,8.13347667]
[1723586087840,15.0412,147.74,147.69,9.96702527]
[1723586088068,0.12549,147.73,147.7,8.13347667]
[1723586088347,15.0412,147.74,147.69,9.96683276]
[1723586088533,15.0412,147.74,147.7,8.1334785]
[1723586088737,15.0412,147.74,147.69,9.96683276]
[1723586088929,15.0412,147.74,147.7,8.13347667]
[1723586089131,15.0412,147.74,147.69,9.96683276]
[1723586089459,15.0412,147.74,147.7,8.13347428]
[1723586089768,15.0412,147.74,147.65,23.4561607]
[1723586089933,15.0412,147.74,147.69,9.96983876]
[1723586090248,15.0412,147.74,147.7,8.13347667]
[1723586090450,15.0412,147.74,147.69,9.96983876]
[1723586090659,15.0412,147.74,147.7,8.13347667]
[1723586090857,15.0412,147.74,147.69,9.96983876]
[1723586091030,15.0412,147.74,147.7,8.13347667]
[1723586091347,15.0412,147.74,147.69,9.96983876]
[1723586091532,15.0412,147.74,147.7,8.13347879]
[1723586091742,15.0412,147.74,147.69,9.96983876]
[1723586091938,15.0412,147.74,147.7,8.1334785]
[1723586092140,15.0412,147.74,147.69,9.96983876]
[1723586092340,15.0412,147.74,147.7,8.13347879]
[1723586092539,15.0412,147.74,147.69,9.96983876]
[1723586092764,15.0412,147.74,147.7,8.13347879]
[1723586092955,15.0412,147.74,147.69,9.96983876]
[1723586093251,0.25098,147.73,147.69,9.96983876]
[1723586094648,0.25098,147.73,147.65,20.0]
[1723586095547,0.25098,147.73,147.69,9.97110847]
[1723586096353,0.25098,147.73,147.68,9.97110847]
[1723586097643,0.25098,147.73,147.68,9.97162905]
[1723586097961,0.25098,147.73,147.68,9.97244236]
[1723586098459,0.25098,147.73,147.69,9.97244236]
[1723586099040,0.25098,147.73,147.68,9.97244236]
[1723586099245,0.25098,147.73,147.69,9.97244236]
[1723586100857,0.25098,147.73,147.65,20.0]
[1723586101047,0.25098,147.73,147.69,9.96991661]
[1723586101673,0.25098,147.73,147.69,9.96867962]
[1723586102356,0.25098,147.73,147.68,9.96867962]
[1723586102540,0.25098,147.73,147.69,9.96867962]
[1723586102947,0.25098,147.73,147.68,9.96867962]
[1723586103153,0.25098,147.73,147.69,9.96867962]
[1723586104064,15.0412,147.74,147.69,9.96867962]
[1723586105155,15.0412,147.74,147.7,9.96867962]
[1723586105361,15.0412,147.74,147.69,9.96867962]
[1723586108464,15.0412,147.74,147.7,9.96867962]
[1723586109163,15.0412,147.74,147.69,9.96867962]
[1723586109747,12.34,147.71,147.69,9.96867962]
[1723586109943,15.18509,147.7,147.68,9.96867962]
[1723586110164,0.12549,147.68,147.67,9.96867962]
[1723586110352,0.12549,147.68,147.61,3.4561607]
[1723586110353,12.59098,147.68,147.65,9.96867962]
[1723586110865,12.59098,147.68,147.65,9.97331169]
[1723586111102,12.59098,147.68,147.6,3.4561607]
[1723586111103,12.46549,147.66,147.6,3.4561607]
[1723586111251,12.46549,147.66,147.63,9.97471793]
[1723586111441,12.46549,147.66,147.62,9.97471793]
[1723586111869,15.2529,147.65,147.62,9.97471793]
[1723586112068,15.2529,147.65,147.61,9.97471793]
[1723586113743,15.2529,147.65,147.6,9.97471793]
[1723586114062,15.2529,147.65,147.61,9.97471793]
[1723586114274,15.2529,147.65,147.6,9.97471793]
[1723586117550,0.12549,147.64,147.59,9.97471793]
[1723586117749,0.25098,147.64,147.59,9.97471793]
[1723586117989,0.25098,147.64,147.56,3.4561607]
[1723586118176,0.25098,147.64,147.59,9.97509714]
[1723586119252,15.2529,147.65,147.59,9.97509714]
[1723586121063,0.12549,147.64,147.59,9.97509714]
[1723586121779,15.2529,147.65,147.59,9.97509714]
[1723586121979,15.2529,147.65,147.59,9.96233117]
[1723586122552,16.5792,147.68,147.61,12.34]
[1723586122782,16.5792,147.68,147.61,22.30233117]
[1723586123163,16.5792,147.68,147.61,12.34]
[1723586123571,16.5792,147.68,147.61,22.30111489]
[1723586124760,16.5792,147.68,147.62,1.35454369]
[1723586125568,16.5792,147.68,147.61,22.29917695]
[1723586126184,6.4941,147.7,147.62,45.0]
[1723586127665,6.4941,147.7,147.61,37.64877695]
[1723586127961,6.4941,147.7,147.62,20.0]
[1723586128481,0.25098,147.69,147.62,20.0]
[1723586128985,6.4941,147.7,147.62,20.0]
[1723586129185,0.12549,147.69,147.62,20.0]
[1723586129392,0.25098,147.69,147.62,20.0]
[1723586130464,0.25098,147.69,147.62,29.95917695]
[1723586131189,0.25098,147.69,147.62,20.0]
[1723586132589,0.25098,147.69,147.62,29.95917695]
[1723586132985,0.25098,147.69,147.62,20.0]
[1723586133204,0.25098,147.69,147.62,29.95913493]
[1723586133755,0.25098,147.69,147.62,20.0]
[1723586134489,0.25098,147.69,147.62,29.959659]
[1723586135294,45.25098,147.69,147.62,29.959659]
[1723586135808,0.12549,147.68,147.62,29.959659]
[1723586135980,0.25098,147.68,147.62,29.959659]
[1723586136480,0.25098,147.68,147.62,29.96067137]
[1723586139289,0.25098,147.68,147.62,20.0]
[1723586141200,15.2489,147.67,147.61,9.96115466]
[1723586141410,0.12549,147.66,147.61,9.96115466]
[1723586141578,0.50196,147.66,147.61,9.96115466]
[1723586142598,0.50196,147.66,147.6,9.96115466]
[1723586143795,0.50196,147.66,147.6,9.96339553]
[1723586144147,0.25098,147.66,147.57,15.1563]
[1723586144410,0.25098,147.66,147.6,9.96338707]
[1723586144593,0.25098,147.66,147.61,9.96338707]
[1723586144792,0.25098,147.66,147.6,9.96338707]
[1723586145384,0.25098,147.66,147.61,9.96338707]
[1723586147325,0.25098,147.66,147.58,12.34]
[1723586147512,0.25098,147.66,147.61,9.96343115]
[1723586154516,45.25098,147.66,147.62,9.96343115]
[1723586155009,45.25098,147.66,147.62,9.96408519]